[Event "Arona Festival 2024"]
[Site "Arona Tenerife"]
[Date "2024.06.25"]
[Round "6.5"]
[White "Sankalp Gupta"]
[Black "Kantor, Gergely"]
[Result "1-0"]
[ECO "C54"]
[WhiteElo "2552"]
[BlackElo "2528"]
[Annotator "TA"]
[PlyCount "179"]
[EventDate "2024.06.20"]
[EventType "swiss"]
[EventCountry "ESP"]
[SourceTitle "playchess.com"]
[Source "ChessBase"]
[SourceQuality "1"]
[TimeControl "5400+30"]

{[%evp 79,179,31,25,36,96,13,17,14,85,81,124,127,128,56,70,0,154,69,69,15,24,8,95,95,152,120,129,19,52,52,58,59,63,0,595,607,1666,1456,3687,3502,3502,2468,5879,1907,11359,10224,29968,29971,29971,29971,29971,29972,29972,29965,29962,29963,29958,29962,29961,29964,29964,8,29974,29975,29975,29976,29976,29977,29977,29978,29974,29977,29982,29983,29984,29985,29990,29991,29991,29987,29987,29986,29986,29987,29987,29988,29988,29989,29992,29993,29993,29994,29994,29995,29995,29996,29996,29997,29997,29998,29998,29999]} 1. e4 {[%emt 0:00:02]} e5 {[%emt 0:01:32]} 2. Nf3 {[%emt 0:00:08]} Nc6 {[%emt 0:00:15]} 3. Bc4 {[%emt 0:00:04]} Nf6 {[%emt 0:00:22]} 4. d3 {[%emt 0:00:09]} Bc5 {[%emt 0:00:03]} 5. c3 {[%emt 0:00:11]} O-O {[%emt 0:00:29]} 6. O-O {[%emt 0:00:10]} d6 {[%emt 0:00:04]} 7. Bg5 {[%emt 0:00:16]} h6 {[%emt 0:00:21]} 8. Bh4 {[%emt 0:00:05]} a5 {[%emt 0:00:21] C54: Giuoco Piano: 4 c3 Nf6, main lines with 5 d4 and 5 d3.} 9. Nbd2 {[%emt 0:01:41]} g5 {[%emt 0:01:27]} 10. Bg3 {[%emt 0:00:04]} Ba7 {[%emt 0:00:06]} 11. Re1 {[%emt 0:00:54] 11.Bb3 is vanishing.} Nh7 {[%emt 0:04:38]} 12. h3 {[%emt 0:02:59] 12.h3 was played by the boomers.} h5 {[%emt 0:02:13]} 13. d4 {[%emt 0:01:53]} Qf6 {[%emt 0:04:29]} 14. Bb5 {[%emt 0:01:05]} h4 {[%emt 0:05:27]} 15. Bh2 {[%emt 0:00:14]} g4 {[%emt 0:01:39]} 16. hxg4 {[%emt 0:00:56]} Bxg4 {[%emt 0:00:15]} 17. Bxc6 {[%emt 0:00:14]} bxc6 {[%emt 0:00:44]} 18. dxe5 {[%emt 0:00:06]} Qg7 {[%emt 0:13:41]} 19. exd6 {[%emt 0:00:22]} Ng5 $146 {[%emt 0:18:40]} ({Predecessor:} 19... cxd6 20. Qe2 Rab8 21. b3 h3 22. Qf1 Qh6 23. Nc4 Qh5 24. Bxd6 Kh8 25. Nd4 Rg8 {0-1 Laine,E (2142)-Lelito,J W-ch WS/M/862 email 2022}) 20. Be5 {[%emt 0:52:25]} Qg6 {[%emt 0:22:01]} 21. Bd4 {[%emt 0:03:26]} Nh3+ {[%emt 0:09:01]} 22. Kh2 {[%emt 0:02:52]} Nf4 {[%emt 0:04:29]} 23. Bxa7 {[%emt 0:04:23]} Rxa7 {[%emt 0:02:33]} 24. Ne5 {[%emt 0:01:38]} Bxd1 {[%emt 0:00:15]} 25. Nxg6 {[%emt 0:00:02]} fxg6 {[%emt 0:00:29]} 26. Rexd1 {[%emt 0:00:02]} cxd6 {[%emt 0:00:31]} 27. Nc4 {[%emt 0:02:28]} d5 {[%emt 0:00:45]} 28. exd5 {[%emt 0:00:03]} Nxd5 {[%emt 0:00:14]} 29. Rd2 {[%emt 0:00:45]} Re8 {[%emt 0:00:29]} 30. Rad1 {[%emt 0:01:08]} a4 {[%emt 0:00:20]} 31. Rd4 {[%emt 0:00:26]} g5 {[%emt 0:04:40]} 32. a3 {[%emt 0:03:28]} Kg7 {[%emt 0:00:36]} 33. R1d2 {[%emt 0:02:24]} Re1 {[%emt 0:00:32]} 34. Nd6 {[%emt 0:00:07]} Nf6 {[%emt 0:01:25]} 35. Nf5+ {[%emt 0:00:55]} Kg6 {[%emt 0:01:20]} 36. Ne3 {[%emt 0:00:01]} Kh5 {[%emt 0:01:07]} 37. Rc4 {[%emt 0:10:59]} Re7 {[%emt 0:00:30]} 38. Rxc6 {[%emt 0:00:51]} Ne4 {[%emt 0:00:19]} 39. Rd8 {[%emt 0:01:02]} Rh7 {[%emt 0:00:33]} 40. Nd5 {[%emt 0:01:03]} Rh6 $1 {[%emt 0:00:53]} 41. Rxh6+ {[%emt 0:06:34]} Kxh6 {[%emt 0:00:01]} 42. g3 {[%emt 0:02:18]} (42. f3 $1 $16 {[%cal Rf3e4]} Nf2 43. g3) 42... Re2 {[%emt 0:00:42]} 43. gxh4 g4 {[%emt 0:00:23]} (43... Rxf2+ $11 44. Kh3 Rxb2) 44. Kg1 $16 {[%emt 0:00:51]} Nxf2 {[%emt 0:00:40]} 45. Rd6+ {[%emt 0:00:36]} Kg7 {[%emt 0:00:05]} 46. Rd7+ {[%emt 0:00:27]} (46. Kf1 $16 Rxb2 47. h5) 46... Kh6 $14 {[%emt 0:00:22]} 47. Rd6+ {[%emt 0:00:00]} ({Better is} 47. Nf4 $1 $14 Nh3+ 48. Nxh3 gxh3 49. Rd3) 47... Kg7 $16 {[%emt 0:00:01]} 48. Nf4 {[%emt 0:00:02]} ({White should try} 48. Kf1 $16 Rxb2 49. h5) 48... Rxb2 $14 {[%emt 0:00:24]} 49. Rd4 {[%emt 0:00:20]} (49. Nh5+ $14 Kh7 50. Rd4) 49... Kf6 $11 {[%emt 0:01:09]} 50. Nd5+ {[%emt 0:01:48]} Ke5 {[%emt 0:00:29]} (50... Kg6 $11 {remains equal.}) 51. Ne3 $1 $16 {[%emt 0:00:03]} Nh3+ {[%emt 0:00:24]} ({Black should play} 51... Ra2) 52. Kf1 $1 $16 {[%emt 0:00:10]} Rb1+ {[%emt 0:00:50]} 53. Rd1 {[%emt 0:00:17]} (53. Kg2 $16 Nf4+ 54. Kf2) 53... Rxd1+ {[%emt 0:00:58]} 54. Nxd1 {[%emt 0:00:01]} Nf4 $1 {[%emt 0:00:21]} 55. Kf2 {[%emt 0:00:54]} Nh5 $1 {[%emt 0:00:48]} 56. Ke3 {[%emt 0:02:08]} (56. Kg2 $14) 56... Kd5 $2 {[%emt 0:00:21][%mdl 8192]} (56... Nf4 $11) 57. Nb2 $18 {[%emt 0:00:00]} g3 {[%emt 0:00:33]} 58. Kf3 {[%emt 0:00:00]} Kc5 {[%emt 0:00:06]} 59. Nxa4+ {[%emt 0:00:41]} Kc4 {[%emt 0:00:00]} 60. Nb2+ Kxc3 {[%emt 0:00:19]} 61. Nd1+ {[%emt 0:01:07]} Kb3 {[%emt 0:00:30]} 62. Ne3 {[%emt 0:00:01]} Kxa3 {[%emt 0:00:11]} 63. Kg4 {[%emt 0:01:41]} Nf6+ {[%emt 0:01:48]} 64. Kxg3 {[%emt 0:00:00]} Kb4 {[%emt 0:00:12]} 65. Kf4 {[%emt 0:00:00]} Kc5 {[%emt 0:00:14]} 66. Kf5 {[%emt 0:01:30]} Nh5 {[%emt 0:01:51]} 67. Kg5 {[%emt 0:00:00]} Ng7 {[%emt 0:00:00]} 68. Kg6 $1 {[%emt 0:00:00]} Ne6 {[%emt 0:00:06] [#]} 69. Ng2 $1 {[%emt 0:00:00]} Kd6 {[%emt 0:00:33] [#]} 70. h5 $2 {[%emt 0:00:00]} (70. Kf6 $1 {mates} Nf8 71. h5 Nd7+ 72. Kg7 Ke5 73. h6 Nf6 74. Ne3 Nh5+ 75. Kf7) 70... Nf8+ $2 {[%emt 0:00:06][%mdl 8192]} (70... Ke7 $11) 71. Kg7 {[%emt 0:00:00]} Ke7 {[%emt 0:00:18]} 72. Nf4 {[%emt 0:00:00]} Nd7 {[%emt 0:01:23]} 73. h6 {[%emt 0:00:00]} Nf6 {[%emt 0:00:32]} 74. Nd5+ {[%emt 0:00:00]} Nxd5 {[%emt 0:00:27]} 75. h7 {[%emt 0:00:00]} Nc7 {[%emt 0:00:34]} 76. h8=Q {[%emt 0:00:00]} ({Not} 76. h8=R Ke6 $14) 76... Ne6+ {[%emt 0:00:02]} 77. Kg6 {[%emt 0:00:00]} Nf8+ {[%emt 0:00:07]} 78. Kf5 {[%emt 0:00:00]} Nd7 {[%emt 0:00:02]} 79. Qg7+ {[%emt 0:00:00]} Kd6 {[%emt 0:00:02]} 80. Qd4+ {[%emt 0:00:00]} Kc6 {[%emt 0:00:01]} 81. Qc4+ {[%emt 0:02:17]} Kd6 {[%emt 0:00:05]} 82. Qe6+ {[%emt 0:00:03]} Kc7 {[%emt 0:00:02]} 83. Qd5 {[%emt 0:00:09]} Nb8 {[%emt 0:00:10]} 84. Ke6 {[%emt 0:00:09]} Nc6 {[%emt 0:00:12]} 85. Qc5 {[%emt 0:00:11]} Kb7 {[%emt 0:00:10]} 86. Kd6 {[%emt 0:00:09]} Nb8 {[%emt 0:00:08]} 87. Qb5+ {[%emt 0:00:08]} Ka7 {[%emt 0:00:19]} 88. Kc7 {[%emt 0:00:08]} Na6+ {[%emt 0:00:05]} 89. Kc8 {[%emt 0:00:04]} Nc5 {[%emt 0:02:14]} 90. Qc6 {[%emt 0:01:58]} 1-0

[Event "Arona Festival 2024"]
[Site "Arona Tenerife"]
[Date "2024.06.25"]
[Round "6.6"]
[White "Stremavicius, Titas"]
[Black "Goutham Krishna H"]
[Result "1/2-1/2"]
[ECO "B07"]
[WhiteElo "2538"]
[BlackElo "2324"]
[Annotator "TA"]
[PlyCount "82"]
[EventDate "2024.06.20"]
[EventType "swiss"]
[EventCountry "ESP"]
[SourceTitle "playchess.com"]
[Source "ChessBase"]
[SourceQuality "1"]
[TimeControl "5400+30"]

{[%evp 9,82,21,19,16,25,16,35,32,33,16,19,9,6,10,19,11,24,21,15,25,27,22,81,32,30,37,45,50,64,81,70,76,71,67,64,62,79,55,62,44,46,48,41,32,59,45,50,43,45,56,79,55,89,63,54,50,68,60,66,50,53,42,57,55,56,23,35,39,43,43,44,63,71,67,94]} 1. d4 {[%emt 0:00:03]} Nf6 {[%emt 0:01:56]} 2. Nf3 {[%emt 0:00:04]} g6 {[%emt 0:00:08]} 3. Nbd2 {[%emt 0:00:07]} Bg7 {[%emt 0:00:12]} 4. e4 {[%emt 0:00:06]} d6 {[%emt 0:00:06]} 5. Bb5+ {[%emt 0:00:05]} c6 {[%emt 0:00:09]} 6. Bd3 {[%emt 0:00:05]} O-O {[%emt 0:00:05][%cal Oe7e5]} 7. O-O {[%emt 0:00:08]} Nh5 {[%emt 0:00:04]} 8. Re1 {[%emt 0:01:45]} e5 {[%emt 0:00:12]} 9. dxe5 {[%emt 0:00:27]} dxe5 {[%emt 0:00:03]} 10. a4 {[%emt 0:03:50]} Qc7 {[%emt 0:07:31]} 11. c3 {[%emt 0:11:34]} Rd8 {[%emt 0:12:24]} 12. Qc2 {[%emt 0:04:32]} h6 {[%emt 0:02:01]} 13. Bf1 {[%emt 0:08:43]} Be6 {[%emt 0:04:17]} 14. Nc4 {[%emt 0:06:10]} Nd7 {[%emt 0:01:00]} 15. b4 {[%emt 0:00:22]} b5 {[%emt 0:01:37]} (15... Nb6 $11 {remains equal.} 16. Nb2 Nd7) 16. Ne3 {[%emt 0:02:36]} ({White should try} 16. Na5 $16) 16... bxa4 {[%emt 0:10:34]} 17. Rxa4 {[%emt 0:04:42]} a5 {[%emt 0:02:15]} 18. Bd2 {[%emt 0:04:02]} c5 {[%emt 0:14:35] [#] And now ...cxb4 would win.} 19. bxa5 {[%emt 0:08:11]} Rxa5 {[%emt 0:00:56]} 20. Rxa5 {[%emt 0:00:11]} Qxa5 {[%emt 0:00:02]} 21. c4 {[%emt 0:00:10]} Qa7 {[%emt 0:02:14]} 22. Bc3 {[%emt 0:00:24]} Rb8 {[%emt 0:01:01]} 23. Rb1 {[%emt 0:18:05]} Kh7 {[%emt 0:01:53]} 24. h4 {[%emt 0:01:05]} Rxb1 {[%emt 0:10:47]} 25. Qxb1 {[%emt 0:00:03]} Qa3 {[%emt 0:02:42]} 26. Qc2 {[%emt 0:00:42]} Qa8 {[%emt 0:01:25]} 27. g3 {[%emt 0:03:08]} Nhf6 {[%emt 0:00:43]} 28. Nd5 {[%emt 0:00:56]} ({But not} 28. Bxe5 Nxe5 (28... Qxe4 29. Qxe4 Nxe4 30. Bc7 $11) 29. Nxe5 Nxe4 $15 (29... Qxe4 30. Nd3 $11)) 28... Qb8 {[%emt 0:00:44]} 29. Bd3 {[%emt 0:02:08]} Bg4 {[%emt 0:06:21]} 30. Nd2 {[%emt 0:02:28] White is more active.} Bf8 {[%emt 0:00:26]} 31. Qb2 {[%emt 0:03:41]} Qxb2 {[%emt 0:03:06]} 32. Bxb2 {[%emt 0:00:02]} Bd6 {[%emt 0:01:34]} 33. Bc2 {[%emt 0:00:17]} Nxd5 {[%emt 0:02:46]} 34. cxd5 {[%emt 0:04:26] [#] Threatens to win with f3.} Be2 {[%emt 0:00:44]} 35. f3 {[%emt 0:00:11]} Bb5 {[%emt 0:01:03]} 36. Ba3 {[%emt 0:03:39]} Nb6 {[%emt 0:01:36]} 37. Nb1 {[%emt 0:02:25]} Kg8 {[%emt 0:01:29]} 38. Nc3 {[%emt 0:01:05]} Ba6 {[%emt 0:00:07]} 39. Ba4 {[%emt 0:07:22]} Kf8 {[%emt 0:01:24]} 40. Bb5 {[%emt 0:00:00]} Bxb5 {[%emt 0:00:48]} 41. Nxb5 {[%emt 0:00:00]} Ke7 {[%emt 0:00:01] Weighted Error Value: White=0.09 (flawless) /Black=0.08 (flawless) .  Mistake:       	White=1     	Black=1      Inaccurate:     	White=1     	Black=3      OK:         	White=10    	Black=15     Best:        	---       	Black=1} 1/2-1/2

[Event "Arona Festival 2024"]
[Site "Arona Tenerife"]
[Date "2024.06.25"]
[Round "6.7"]
[White "Baenziger, Fabian"]
[Black "Krysa, Leandro"]
[Result "1/2-1/2"]
[ECO "E01"]
[WhiteElo "2410"]
[BlackElo "2535"]
[Annotator "TA"]
[PlyCount "52"]
[EventDate "2024.06.20"]
[EventType "swiss"]
[EventCountry "ESP"]
[SourceTitle "playchess.com"]
[Source "ChessBase"]
[SourceQuality "1"]
[TimeControl "5400+30"]

{[%evp 10,52,37,45,31,43,52,39,56,51,46,44,28,66,48,36,77,62,56,58,56,40,57,52,56,12,23,34,31,-18,-16,-23,-18,-33,-26,-28,3,4,12,4,9,8,14,15,20]} 1. d4 {[%emt 0:00:08]} Nf6 {[%emt 0:00:14]} 2. c4 {[%emt 0:00:26]} e6 {[%emt 0:00:15]} 3. Nf3 {[%emt 0:00:27]} d5 {[%emt 0:00:20]} 4. g3 {[%emt 0:00:35]} Bd6 {[%emt 0:01:08]} 5. Bg2 {[%emt 0:00:18]} Nc6 {[%emt 0:00:56]} 6. O-O {[%emt 0:00:37]} O-O {[%emt 0:00:23]} 7. b3 {[%emt 0:00:34][%cal Bb2b3,Bb3c4,Bc4c5][%mdl 32]} dxc4 {[%emt 0:01:07]} 8. bxc4 {[%emt 0:00:20]} e5 {[%emt 0:00:17] White is slightly better.} 9. c5 {[%emt 0:00:59]} Be7 {[%emt 0:00:28]} 10. dxe5 {[%emt 0:00:04]} Qxd1 {[%emt 0:09:40]} 11. Rxd1 {[%emt 0:00:13]} Ne4 {[%emt 0:00:11][%cal Oc8g4] Dodges Nc3} 12. Ba3 {[%emt 0:01:08]} (12. Nd4 {looks sharper.} Rd8 13. Be3 Nxd4 14. Bxd4 Bxc5 15. e3) 12... Bxc5 {[%emt 0:01:12]} 13. Bxc5 {[%emt 0:02:23]} Nxc5 {[%emt 0:00:08]} 14. Nc3 {[%emt 0:00:05]} Be6 {[%emt 0:02:13]} 15. Rdc1 {[%emt 0:02:58]} a6 {[%emt 0:36:24] Dodges Nb5} 16. Rab1 {[%emt 0:17:10][%cal Oc3d5]} Rab8 {[%emt 0:01:14]} 17. Rb2 {[%emt 0:27:03]} Rfd8 {[%emt 0:02:32]} 18. Ng5 $1 {[%emt 0:05:47]} Nxe5 {[%emt 0:03:59]} 19. Nxe6 {[%emt 0:00:26]} (19. Nce4 $1 $14 {deserves consideration.} Nxe4 20. Bxe4) 19... fxe6 $11 {[%emt 0:00:30]} 20. Ne4 $1 {[%emt 0:38:49]} Nxe4 {[%emt 0:02:38]} 21. Bxe4 {[%emt 0:00:30]} c6 {[%emt 0:01:00]} 22. f4 {[%emt 0:00:00]} Nd7 {[%emt 0:08:33]} 23. Rcb1 {[%emt 0:00:00] The position is equal.} b5 {[%emt 0:00:40]} 24. Bxc6 {[%emt 0:00:00]} Nb6 {[%emt 0:00:50]} 25. Rc1 {[%emt 0:00:00]} Rd4 {[%emt 0:14:41]} 26. Kf2 {[%emt 0:00:00]} Kf7 {[%emt 0:02:52] Weighted Error Value: White=0.07 (flawless) /Black=0.08 (flawless) .  Mistake:       	White=1     	---        Inaccurate:     	White=1     	Black=2      OK:         	White=5     	Black=7      Best:        	White=2     	Black=2      Strong:       	White=2     	---} 1/2-1/2

[Event "Arona Festival 2024"]
[Site "Arona Tenerife"]
[Date "2024.06.25"]
[Round "6.8"]
[White "Peralta, Fernando"]
[Black "Admiraal, Miguoel"]
[Result "1-0"]
[ECO "D40"]
[WhiteElo "2562"]
[BlackElo "2451"]
[Annotator "TA"]
[PlyCount "78"]
[EventDate "2024.06.20"]
[EventType "swiss"]
[EventCountry "ESP"]
[SourceTitle "playchess.com"]
[Source "ChessBase"]
[SourceQuality "1"]
[TimeControl "5400+30"]

{[%evp 11,78,22,26,0,0,4,8,0,13,27,118,120,135,129,151,136,235,215,211,158,146,150,161,122,122,91,85,94,80,76,87,60,66,51,48,0,8,0,21,0,8,15,30,30,41,41,45,30,43,37,150,142,146,108,209,157,348,325,285,127,127,137,1388,1344,1259,1111,4137,1699,6050]} 1. d4 {[%emt 0:00:04]} e6 {[%emt 0:00:28]} 2. Nf3 {[%emt 0:01:49]} c5 {[%emt 0:01:12]} 3. e3 {[%emt 0:00:15]} Nf6 {[%emt 0:00:33]} 4. c4 {[%emt 0:00:16]} d5 {[%emt 0:01:31]} 5. Nc3 {[%emt 0:01:55]} a6 {[%emt 0:00:38]} 6. cxd5 {[%emt 0:00:53]} exd5 {[%emt 0:00:11]} 7. Bd3 {[%emt 0:00:52]} Nc6 {[%emt 0:00:20]} 8. O-O {[%emt 0:00:33]} Bg4 {[%emt 0:08:41]} 9. h3 {[%emt 0:20:35] The position is equal.} Bh5 {[%emt 0:03:45]} 10. Re1 {[%emt 0:00:55]} c4 {[%emt 0:07:32] [#]} (10... Qc7 $11) 11. e4 $1 $16 {[%emt 0:00:18]} cxd3 {[%emt 0:26:14]} (11... Be7 12. exd5) 12. exd5+ {[%emt 0:00:11]} Ne7 {[%emt 0:01:39] [#]} 13. g4 $1 {[%emt 0:07:17]} Nfxd5 {[%emt 0:17:37]} (13... Bg6 $16 {was called for.}) 14. gxh5 $18 {[%emt 0:10:58]} f6 {[%emt 0:04:20]} 15. Qb3 {[%emt 0:12:01]} Nxc3 {[%emt 0:04:41]} 16. bxc3 {[%emt 0:00:08]} Qd7 {[%emt 0:00:43]} 17. Re6 {[%emt 0:09:18] Hoping for Ba3.} Qb5 {[%emt 0:04:10]} 18. d5 {[%emt 0:02:45]} Qxb3 {[%emt 0:03:02]} 19. axb3 {[%emt 0:00:04]} O-O-O {[%emt 0:00:38]} 20. c4 {[%emt 0:00:37] White is more active.} Nf5 {[%emt 0:00:07]} 21. Bf4 {[%emt 0:07:35]} Bc5 {[%emt 0:01:00]} 22. Rd1 {[%emt 0:01:02]} Rhe8 {[%emt 0:00:28]} 23. Rde1 {[%emt 0:08:51]} (23. Rxd3 $2 {perishes.} Rxe6 24. Kf1 Re4 $19) 23... Rxe6 {[%emt 0:01:32]} 24. Rxe6 {[%emt 0:00:05]} Kd7 {[%emt 0:05:32]} 25. Kf1 {[%emt 0:01:11]} Re8 $132 {[%emt 0:03:37][%mdl 2048] Black is fighting back} 26. Rxe8 Kxe8 $11 {[%emt 0:00:01][%mdl 4096] Endgame. KBN-KBN} 27. Ke1 {[%emt 0:06:24]} b5 {[%emt 0:01:31]} 28. Kd2 {[%emt 0:02:51]} Bxf2 {[%emt 0:00:16]} 29. Kxd3 {[%emt 0:00:14]} bxc4+ {[%emt 0:01:13]} 30. bxc4 {[%emt 0:01:08]} g5 {[%emt 0:00:23]} (30... a5 $1 $14) 31. hxg6 $16 {[%emt 0:02:06]} hxg6 {[%emt 0:00:01]} 32. Nd2 {[%emt 0:00:57] Threatens to win with Ne4.} g5 {[%emt 0:00:41] [#]} (32... a5 $16) 33. Bc7 $1 $18 {[%emt 0:01:17] Ne4 is the strong threat.} Kd7 $2 {[%emt 0:00:59]} (33... Bg3 $16 {was worth a try.} 34. Ba5 Be1) 34. Ba5 {[%emt 0:00:05]} Be1 {[%emt 0:01:40]} 35. c5 {[%emt 0:00:44]} (35. Bc3 $18) 35... Ne7 $16 {[%emt 0:00:16]} 36. c6+ {[%emt 0:00:52]} Nxc6 $2 {[%emt 0:00:27][%mdl 8192]} (36... Ke8 $16) 37. dxc6+ $18 {[%emt 0:00:05] White is clearly winning.} Kxc6 {[%emt 0:00:03]} 38. Bd8 {[%emt 0:00:25]} Bh4 {[%emt 0:01:48]} 39. Nf3 {[%emt 0:01:37]} (39. Bxf6 $142 Kd6 40. Nf3) 39... Kd5 {[%emt 0:00:30] Weighted Error Value: White=0.15 (very precise) /Black=0.26 (precise) .  Loses game:     	---       	Black=2      Mistake:       	White=1     	Black=4      Inaccurate:     	White=2     	---        OK:         	White=9     	Black=11     Best:        	White=4     	Black=4      Strong:       	White=3     	---} 1-0

[Event "Arona Festival 2024"]
[Site "Arona Tenerife"]
[Date "2024.06.25"]
[Round "6.9"]
[White "Tsolakidou, Stavroula"]
[Black "Socko, Bartosz"]
[Result "1/2-1/2"]
[ECO "C72"]
[WhiteElo "2421"]
[BlackElo "2556"]
[Annotator "TA"]
[PlyCount "87"]
[EventDate "2024.06.20"]
[EventType "swiss"]
[EventCountry "ESP"]
[SourceTitle "playchess.com"]
[Source "ChessBase"]
[SourceQuality "1"]
[TimeControl "5400+30"]

{[%evp 18,87,51,34,40,31,43,35,47,47,42,34,40,33,42,37,30,0,25,2,0,0,14,14,9,16,39,0,0,-14,0,0,0,0,0,0,7,4,17,0,0,0,0,0,0,0,0,0,0,0,0,0,0,-5,0,-8,16,12,24,8,8,8,5,0,0,0,0,0,0,0,0,0]} 1. e4 {[%emt 0:04:54]} e5 {[%emt 0:00:06]} 2. Nf3 {[%emt 0:00:06]} Nc6 {[%emt 0:00:04]} 3. Bb5 {[%emt 0:00:08]} a6 {[%emt 0:00:05]} 4. Ba4 {[%emt 0:00:05]} d6 {[%emt 0:00:04]} 5. O-O {[%emt 0:00:51]} Bd7 {[%emt 0:00:12]} 6. c4 {[%emt 0:01:42]} Nf6 {[%emt 0:00:23][%cal Bg8f6,Bf6d7,Bd7c5][%mdl 32]} 7. Nc3 {[%emt 0:00:27]} Be7 {[%emt 0:00:06][%cal Bf8e7,Be7f6,Bf6e5][%mdl 32]} 8. Re1 {[%emt 0:10:35]} O-O {[%emt 0:00:13]} 9. Bxc6 {[%emt 0:01:01]} Bxc6 {[%emt 0:06:56]} 10. d4 {[%emt 0:00:07]} exd4 {[%emt 0:00:08]} 11. Nxd4 {[%emt 0:00:07]} Nd7 {[%emt 0:00:16]} 12. b3 {[%emt 0:06:52][%cal Bb2b3,Bb3b4][%mdl 32]} Bf6 {[%emt 0:00:50] White is slightly better.} 13. Bb2 {[%emt 0:00:25]} Re8 {[%emt 0:00:27]} 14. Qd2 {[%emt 0:01:07]} Nc5 {[%emt 0:01:28]} 15. f3 {[%emt 0:02:29]} Be5 {[%emt 0:03:14]} 16. b4 {[%emt 0:17:19]} Ne6 {[%emt 0:04:50]} 17. Nf5 {[%emt 0:00:49]} Qg5 {[%emt 0:21:46]} (17... b5 $5) 18. Rad1 {[%emt 0:06:06]} (18. Qxg5 {simplifies} Nxg5 19. Rab1 Bxc3 20. Bxc3 f6 21. Ne3) 18... Qxd2 {[%emt 0:13:35]} 19. Rxd2 {[%emt 0:00:05]} Kf8 {[%emt 0:00:20]} 20. Nd5 {[%emt 0:03:00]} Bxb2 {[%emt 0:04:31]} 21. Rxb2 {[%emt 0:00:05]} a5 {[%emt 0:02:06]} 22. a3 {[%emt 0:04:05]} axb4 23. axb4 {[%emt 0:00:05]} Ra4 {[%emt 0:05:20]} 24. Rd1 {[%emt 0:00:37]} Rea8 {[%emt 0:02:07]} 25. Rdd2 {[%emt 0:00:58]} g6 {[%emt 0:04:00]} 26. Nfe3 {[%emt 0:00:25]} b6 {[%emt 0:00:35]} 27. Kf2 {[%emt 0:01:36]} Ra3 {[%emt 0:02:13]} 28. Nxc7 {[%emt 0:06:53]} Nxc7 {[%emt 0:00:06]} 29. Rxd6 {[%emt 0:00:03]} Be8 {[%emt 0:00:20]} 30. Rxb6 {[%emt 0:00:07]} Rd8 {[%emt 0:07:00]} 31. Nd5 {[%emt 0:04:42]} Nxd5 {[%emt 0:01:05]} 32. cxd5 {[%emt 0:00:04]} Ke7 {[%emt 0:06:19]} 33. Rc2 {[%emt 0:03:11]} Rda8 {[%emt 0:02:48]} 34. Kg3 {[%emt 0:02:39]} Bd7 {[%emt 0:02:30]} 35. Rc7 {[%emt 0:06:17]} Kd8 {[%emt 0:00:22]} 36. Rcb7 {[%emt 0:02:07] [#] Hoping for Rd6.} ({Much worse is} 36. Rbb7 Bc8 37. Rxf7 Bxb7 38. Rxb7 R8a4 39. Rxh7 Rxb4 40. Rh8+ Ke7 $19) 36... R3a6 {[%emt 0:03:00]} 37. Rxa6 {[%emt 0:02:13]} Rxa6 $11 {[%emt 0:00:05][%mdl 4096] Endgame. KRB-KR} 38. b5 {[%emt 0:00:39]} Rd6 {[%emt 0:06:14] The position is equal.} 39. Kf4 {[%emt 0:02:17] Threatens to win with Ke5.} f6 {[%emt 0:01:33]} 40. b6 {[%emt 0:06:23]} Kc8 {[%emt 0:00:02] Inhibits Rb8+.} 41. Rc7+ {[%emt 0:00:04]} Kd8 {[%emt 0:00:07]} 42. Rb7 {[%emt 0:00:09]} Kc8 {[%emt 0:01:22] Against Rb8+} 43. Rc7+ {[%emt 0:00:04]} Kd8 {[%emt 0:00:46]} 44. Rb7 {[%emt 0:00:05] Weighted Error Value: White=0.06 (flawless) /Black=0.05 (flawless) .  Inaccurate:     	White=2     	---        OK:         	White=16    	Black=16     Best:        	White=2     	Black=2} 1/2-1/2